[Event "Mitropa Cup Women 2022"]
[Site "Corte"]
[Date "2022.05.05"]
[Round "6.7"]
[White "Sankova, Stella"]
[Black "Mihok-Juhasz, Barbara"]
[Result "1/2-1/2"]
[ECO "B40"]
[WhiteElo "2055"]
[BlackElo "2202"]
[Annotator "TA"]
[PlyCount "83"]
[EventDate "2022.04.30"]
[EventType "team-tourn"]
[EventCountry "FRA"]
[SourceTitle "playchess.com"]
[Source "ChessBase"]
[SourceQuality "1"]
[WhiteTeam "Slovakia"]
[BlackTeam "Hungary"]
[WhiteTeamCountry "SVK"]
[BlackTeamCountry "HUN"]
[TimeControl "40/5400+30:1800+30"]

{[%evp 12,83,16,16,7,6,13,22,31,7,0,10,22,14,35,33,54,45,44,28,43,10,18,6,50,41,32,45,46,39,39,8,21,0,0,0,0,0,39,20,66,57,46,23,23,31,19,18,20,8,8,0,0,0,0,0,0,0,0,0,0,0,0,0,0,1,2,2,8,2,8,8,8,0]} 1. e4 {[%emt 0:00:03]} c5 {[%emt 0:00:05]} 2. Nf3 {[%emt 0:00:04]} e6 {[%emt 0:00:06]} 3. c3 {[%emt 0:01:09]} d5 {[%emt 0:00:09]} 4. exd5 {[%emt 0:00:04]} Qxd5 {[%emt 0:00:06]} 5. Na3 {[%emt 0:01:05]} Nc6 {[%emt 0:02:26]} 6. d4 {[%emt 0:00:54]} Nf6 {[%emt 0:00:13]} 7. Be3 {[%emt 0:00:54] With the idea Nb5.} cxd4 {[%emt 0:00:35] [#] B22: Sicilian: 2 c3.} 8. Nb5 $1 {[%emt 0:00:27] Hoping for Nc7+.} Qd8 {[%emt 0:00:05] Prevents Nc7+.} (8... Qd7 9. Nbxd4) 9. Nbxd4 {[%emt 0:00:31]} Nd5 {[%emt 0:00:05] 9...Nd5 is better than 9...Nxd4.} 10. Nxc6 {[%emt 0:00:06]} bxc6 {[%emt 0:00:04]} 11. Bd2 {[%emt 0:00:22]} Bb7 {[%emt 0:02:50]} 12. Qc2 {[%emt 0:00:50]} Be7 {[%emt 0:02:08]} 13. Bd3 {[%emt 0:00:17]} h6 {[%emt 0:00:04] [#]} 14. O-O $146 {[%emt 0:00:19]} ({Predecessor:} 14. O-O-O Qc7 15. Rhe1 O-O 16. g4 c5 17. Bh7+ Kh8 18. Be4 Rad8 19. Kb1 Nf6 20. Bxb7 Qxb7 {0-1 (40) Srinath,R (2341)-Juhasz,B (2207) Budapest 2022}) 14... Qc7 {[%emt 0:04:18]} 15. c4 {[%emt 0:18:20]} Nf4 {[%emt 0:03:12]} 16. Bxf4 {[%emt 0:06:23]} (16. Bc3 $5 {[%cal Rc3g7]}) 16... Qxf4 {[%emt 0:00:06]} 17. c5 {[%emt 0:02:15]} Rd8 {[%emt 0:15:17]} 18. b4 {[%emt 0:06:36]} O-O {[%emt 0:09:42]} (18... Qxb4 $2 19. Rab1 Qa3 20. Rb3 (20. Rxb7 Qxd3 21. Qxd3 Rxd3 $16) 20... Qxc5 21. Rxb7 $18) 19. Rfd1 {[%emt 0:06:57]} Bc8 {[%emt 0:05:19]} (19... Qxb4 $2 20. Rab1 Qxc5 21. Rxb7 $18) 20. a3 {[%emt 0:02:12]} Qc7 {[%emt 0:19:14]} 21. Bc4 {[%emt 0:05:40]} Bf6 {[%emt 0:04:16]} 22. Rxd8 {[%emt 0:01:10]} Rxd8 {[%emt 0:00:21]} 23. Rd1 {[%emt 0:01:58]} Rxd1+ {[%emt 0:00:49]} 24. Qxd1 {[%emt 0:00:01]} Qd7 {[%emt 0:00:08]} 25. Qe2 {[%emt 0:02:51]} e5 {[%emt 0:03:25]} (25... a5 $11) 26. h3 $14 {[%emt 0:04:33] White is more active.} ({Don't go for} 26. Nxe5 $2 Bxe5 27. Qxe5 Qd1+ 28. Bf1 Ba6 29. Qe8+ Kh7 30. Qe4+ g6 $19) 26... Qf5 {[%emt 0:06:00]} 27. Bd3 {[%emt 0:02:47]} Qf4 {[%emt 0:02:27]} 28. Qe4 {[%emt 0:05:38]} Qxe4 {[%emt 0:05:03]} 29. Bxe4 {[%emt 0:00:03][%mdl 4096] Endgame KBB-KBN. The position is equal.} Bd7 {[%emt 0:00:05]} 30. Kf1 {[%emt 0:04:21]} g6 {[%emt 0:00:11]} 31. a4 {[%emt 0:04:21]} Bg7 {[%emt 0:01:11]} 32. Bd3 {[%emt 0:05:10]} f5 {[%emt 0:08:35]} 33. Bc4+ {[%emt 0:00:41]} Kf8 {[%emt 0:00:39]} 34. b5 {[%emt 0:03:31]} cxb5 {[%emt 0:00:21]} 35. axb5 {[%emt 0:00:27]} e4 {[%emt 0:00:04]} 36. Nd2 {[%emt 0:01:04]} Ke7 {[%emt 0:00:50]} 37. Ke2 {[%emt 0:03:12]} Be5 {[%emt 0:00:22]} 38. f3 {[%emt 0:01:53]} exf3+ {[%emt 0:01:47]} 39. Nxf3 {[%emt 0:00:23]} Bb8 {[%emt 0:02:43]} 40. Kd3 {[%emt 0:04:36]} g5 {[%emt 0:00:42]} 41. Kd4 {[%emt 0:35:23]} Kf6 {[%emt 0:34:20]} 42. Bd3 {[%emt 0:00:00] Weighted Error Value: White=0.06 (flawless) /Black=0.06 (flawless)} 1/2-1/2

[Event "Mitropa Cup Women 2022"]
[Site "Corte"]
[Date "2022.05.05"]
[Round "6.8"]
[White "Demeter, Dorina"]
[Black "Sevcikova, Lucia"]
[Result "1-0"]
[ECO "D43"]
[WhiteElo "2235"]
[BlackElo "2019"]
[Annotator "TA"]
[PlyCount "87"]
[EventDate "2022.04.30"]
[EventType "team-tourn"]
[EventCountry "FRA"]
[SourceTitle "playchess.com"]
[Source "ChessBase"]
[SourceQuality "1"]
[WhiteTeam "Hungary"]
[BlackTeam "Slovakia"]
[WhiteTeamCountry "HUN"]
[BlackTeamCountry "SVK"]
[TimeControl "40/5400+30:1800+30"]

{[%evp 16,87,34,18,27,23,50,18,59,8,84,53,75,6,70,68,80,79,85,79,79,71,84,89,77,88,95,77,56,12,11,-9,137,125,164,136,1814,247,425,431,433,46,209,206,213,210,351,212,231,92,94,37,92,0,0,0,12,0,758,1216,1052,1042,1033,-468,29992,29992,29992,29993,29993,29994,29996,29997,29997,29998]} 1. Nf3 d5 {[%emt 0:00:09]} 2. d4 {[%emt 0:00:07]} Nf6 {[%emt 0:00:03]} 3. c4 {[%emt 0:00:04]} c6 {[%emt 0:00:03]} 4. Nc3 {[%emt 0:00:05]} e6 {[%emt 0:00:06]} 5. Bg5 {[%emt 0:02:58]} h6 {[%emt 0:00:15]} 6. Bxf6 {[%emt 0:01:50]} Qxf6 {[%emt 0:00:09]} 7. e3 {[%emt 0:00:05][%cal Be2e3,Be3e4,Be4e5][%mdl 32]} Nd7 {[%emt 0:01:21]} 8. Bd3 {[%emt 0:01:41]} dxc4 {[%emt 0:06:36]} 9. Bxc4 {[%emt 0:00:41]} Qd8 {[%emt 0:00:39] D43: Semi-Slav: 5 Bg5 h6.} 10. O-O {[%emt 0:04:39]} Bd6 {[%emt 0:03:58]} 11. e4 {[%emt 0:07:09]} O-O {[%emt 0:06:13] The position is equal.} 12. Qe2 {[#]} (12. e5 $14 Nb6 13. Bb3 (13. exd6 Nxc4 14. d7 Bxd7 $15)) 12... Re8 $146 {[%emt 0:06:09]} (12... b5 $11 {keeps the balance.} 13. Bb3 b4) ({Predecessor:} 12... e5 13. Rad1 exd4 14. Nxd4 Ne5 15. Bb3 Qh4 16. g3 Qh3 17. f3 Rd8 18. Qg2 Bc5 {1-0 (31) Belukhin,I (2270)-Novitzkij,D (2395) St Petersburg 2002}) 13. Rad1 {[%emt 0:05:12]} Qc7 {[%emt 0:07:05]} 14. Bb3 {[%emt 0:12:09]} ({White should play} 14. e5 $16 Be7 15. Qe4) 14... b6 {[%emt 0:04:21]} (14... e5 $11) 15. e5 $14 {[%emt 0:07:25]} Be7 {[%emt 0:03:02]} 16. Nd2 {[%emt 0:01:39]} b5 {[%emt 0:05:45]} 17. f4 {[%emt 0:04:43] Threatens to win with f5.} Nb6 {[%emt 0:07:35]} 18. Bc2 {[%emt 0:04:00][%cal Oh2h4]} b4 {[%emt 0:06:07] [#]} 19. Qd3 {[%emt 0:07:23] Intending Qh7+ and mate.} g6 {[%emt 0:01:03]} 20. Nce4 {[%emt 0:00:34][%cal Oh2h4]} a5 {[%emt 0:03:17]} 21. Qh3 {[%emt 0:02:30]} Kg7 {[%emt 0:03:08]} 22. Nf6 {[%emt 0:06:28] Pair of Knights!} Rh8 {[%emt 0:05:48]} 23. Qg3 {[%emt 0:05:22]} Bxf6 {[%emt 0:04:37]} (23... Qd8 $11) 24. exf6+ $16 {[%emt 0:00:06]} Kh7 {[%emt 0:00:09]} 25. Nf3 {[%emt 0:01:39]} Nd7 {[%emt 0:03:30][%mdl 8192] [#]} (25... Qd8 $16) 26. Qh4 $2 {[%emt 0:06:05]} ({Weaker is} 26. Ne5 Nxe5 27. fxe5 Ba6 $16) (26. Bxg6+ $1 {[%mdl 512]} fxg6 27. Ng5+ $1 {[%mdl 512]} (27. Nh4 $2 Rg8 $19) 27... Kg8 28. Nxe6) 26... Kg8 $2 {[%emt 0:03:01]} (26... Nf8 {keeps fighting.} 27. Ne5 Kg8) 27. f5 $18 {[%emt 0:04:12]} exf5 {[%emt 0:03:13]} 28. Bxf5 $2 {[%emt 0:00:31]} Nf8 $2 {[%emt 0:07:19]} (28... gxf5 $14 29. Ne5 Nf8) 29. Bxc8 {[%emt 0:01:59]} Rxc8 {[%emt 0:00:18]} 30. Rde1 {[%emt 0:00:04] Against Re8} c5 {[%emt 0:04:50]} (30... Qd6 $142 31. Ne5 Rh7) 31. Re7 Qd6 32. dxc5 {[%emt 0:05:28]} (32. Ne5 $18 {and White stays clearly on top.} Rh7 33. dxc5 Rxc5 34. Nc4) 32... Rxc5 $16 {[%emt 0:01:57]} 33. Nd4 $40 {[%emt 0:04:23][%mdl 128] Prevents Rf5. White has some attack.} (33. Qd4 $1 $16 {[%cal Rd4d6]} Qxd4+ 34. Nxd4) 33... Rd5 {[%emt 0:01:34]} ({Black should try} 33... Rc4 $14 34. Rd1 Rc5) 34. Re4 {[%emt 0:01:14] 0x0.001c1415cf9bdp-1022s more active pieces.} (34. Nc2 $1 $16) 34... Qc5 {[%emt 0:01:15] aiming for ...Ne6.} 35. Kh1 {[%emt 0:00:25]} Qc4 {[%emt 0:00:32][%cal Rc4f1]} 36. Qf4 {[%emt 0:02:40][%cal Od4f5] Black must now prevent Nf5!} Qxa2 $2 {[%emt 0:01:00][%mdl 8192]} (36... g5 $11 37. Qf2 Ng6) 37. Re8 $18 {[%emt 0:00:33][%cal Oe8f8] Threatening mate with Rxf8+!} Kh7 {[%emt 0:00:28]} 38. b3 {[%emt 0:02:06][%cal Of4c7] Qc7! would kill now.} Qb2 {[%emt 0:01:06] [#]} 39. Qc7 $4 {[%emt 0:00:51][%mdl 8192]} Nd7 $4 {[%emt 0:00:57][%mdl 8192]} (39... Rd7 $19 40. Qc8 Qxd4) 40. Rxh8+ {[%emt 0:00:54] White mates.} Kxh8 {[%emt 0:00:05]} 41. Qd8+ {[%emt 0:01:55]} Kh7 {[%emt 0:00:13] [#]} 42. Qe8 $1 {[%emt 0:00:19]} Nxf6 {[%emt 0:01:59]} (42... Qxg2+ 43. Kxg2) 43. Qxf7+ {[%emt 0:00:11]} Kh8 {[%emt 0:00:06]} 44. Qxf6+ {[%emt 0:00:12] Weighted Error Value: White=0.82/Black=0.62} 1-0

[Event "Mitropa Cup Women 2022"]
[Site "Corte"]
[Date "2022.05.05"]
[Round "6.8"]
[White "Koubova, Anna Marie"]
[Black "Froewis, Annika"]
[Result "1-0"]
[ECO "D35"]
[WhiteElo "2115"]
[BlackElo "2090"]
[Annotator "TA"]
[PlyCount "89"]
[EventDate "2022.04.30"]
[EventType "team-tourn"]
[EventCountry "FRA"]
[SourceTitle "playchess.com"]
[Source "ChessBase"]
[SourceQuality "1"]
[WhiteTeam "Czech Republic"]
[BlackTeam "Austria"]
[WhiteTeamCountry "CZE"]
[BlackTeamCountry "AUT"]
[TimeControl "40/5400+30:1800+30"]

{[%evp 13,89,20,25,16,17,19,23,21,51,20,69,84,79,87,95,101,97,60,81,35,41,0,0,-1,0,-74,65,56,86,-63,85,79,87,70,190,179,249,273,239,195,293,165,202,118,197,135,133,135,213,186,258,202,272,260,295,52,241,211,279,216,282,227,215,207,267,168,266,239,603,597,1660,1607,1395,766,750,750,692,658]} 1. d4 {[%emt 0:00:11]} d5 {[%emt 0:00:04]} 2. c4 {[%emt 0:00:14]} e6 {[%emt 0:00:04]} 3. Nc3 {[%emt 0:00:18]} Nf6 {[%emt 0:00:06]} 4. cxd5 {[%emt 0:00:14]} exd5 {[%emt 0:00:05]} 5. Bg5 {[%emt 0:00:14]} Be7 {[%emt 0:00:08]} 6. e3 {[%emt 0:00:23]} c6 {[%emt 0:00:13]} 7. Bd3 {[%emt 0:00:14]} Nbd7 {[%emt 0:00:19] 7...Nbd7 is better than 7...0-0.} 8. h3 {[%emt 0:00:26] D35: Queen's Gambit Declined: Exchange Variation.} O-O {[%emt 0:02:49]} 9. Qc2 {[%emt 0:00:31]} g6 {[%emt 0:15:50]} 10. Nf3 {[%emt 0:01:50] [#] White has an edge.} b5 $146 {[%emt 0:05:55]} ({Predecessor:} 10... Re8 11. Bf4 a6 12. O-O Nf8 13. Rab1 Ne6 14. Bh2 Ng7 15. Qb3 Ra7 16. Bb8 Ra8 {1-0 (67) Maletin,P (2578)-Lugovskoy,M (2401) Taganrog 2015}) 11. O-O {[%emt 0:04:23][%cal Bh1f1,Bf1e1,Be1e4][%mdl 32]} Nh5 {[%emt 0:21:50]} (11... Re8 $11 {might be stronger.}) 12. Bxe7 $14 {[%emt 0:19:40] White is more active.} Qxe7 {[%emt 0:00:02]} 13. Rfe1 {[%emt 0:00:16]} f5 {[%emt 0:11:33] Against e4} 14. a4 {[%emt 0:05:28]} b4 {[%emt 0:02:29]} 15. Na2 {[%emt 0:01:20]} Rf6 {[%emt 0:06:28]} 16. Qb3 {[%emt 0:10:09]} (16. a5 $16) 16... a5 {[%emt 0:03:53]} 17. e4 {[%emt 0:03:10]} fxe4 {[%emt 0:03:13]} 18. Rxe4 {[%emt 0:02:56]} Qd6 {[%emt 0:07:01][%cal Of6f3]} 19. Rae1 {[%emt 0:05:12] [#]} (19. Re8+ $11 {remains equal.} Nf8 20. Ba6 Rxa6 21. Rxc8) 19... Nf4 {[%emt 0:01:03]} (19... Rxf3 $1 $17 20. gxf3 Ndf6) 20. Re8+ {[%emt 0:05:51]} Nf8 {[%emt 0:00:51][%cal Of4g2]} 21. Bf1 {[%emt 0:03:19]} ({White has to play} 21. Ng5 $16 {And now Ne4 would win.} Kh8 22. Bf1 (22. R1e7 Nxh3+ 23. Nxh3 Bxh3 $14)) 21... Bb7 {[%emt 0:03:30] [#]} (21... N4e6 $1 $15 {stays ahead.} 22. Nc1 Kf7 23. R8xe6 Nxe6) 22. Rxa8 $1 $16 {[%emt 0:30:17]} Bxa8 {[%emt 0:00:02]} 23. Qe3 {[%emt 0:00:21]} Bb7 {[%emt 0:05:15]} (23... Nd7 $14) 24. Nc1 $18 {[%emt 0:01:30]} Bc8 {[%emt 0:03:41]} (24... N4e6 {was called for.} 25. Nb3 Qc7) 25. Nb3 {[%emt 0:00:58]} Qc7 {[%emt 0:03:48]} 26. Qe5 {[%emt 0:00:52]} Qg7 {[%emt 0:01:50]} (26... Rf7 $142 27. Qxc7 Rxc7 28. Nxa5 c5) 27. Nfd2 {[%emt 0:02:48]} (27. Nxa5 $142 {Threatens to win with Qb8.} Bd7 28. Re3) 27... g5 {[%emt 0:01:11]} 28. Qe7 {[%emt 0:00:41]} (28. Re3 $18) 28... Qg6 {[%emt 0:00:44]} (28... Rf7 $16 29. Qe3 N8g6 30. Qe8+ (30. Nxa5 $2 Re7 $19) 30... Rf8) 29. Qe8 {[%emt 0:00:36]} (29. Qd8 $18 Bf5 30. Re3 (30. Qxa5 Bd3 $11) (30. Nxa5 Bc2 $16)) 29... Qf5 $16 {[%emt 0:00:28][%cal Rf4h3]} 30. Qe5 {[%emt 0:00:27]} (30. Nxa5 $2 {[#]} Nxh3+ $1 {[%mdl 512]} 31. gxh3 Qxf2+ 32. Kh1 Qxd2 $19) 30... Nxh3+ {[%emt 0:00:29]} (30... Qxe5 $16 {is a better defense.} 31. Rxe5 (31. dxe5 Rf7 $14) 31... N8e6) 31. gxh3 $18 {[%emt 0:00:23]} Qxf2+ {[%emt 0:00:02]} 32. Kh1 {[%emt 0:00:08] Strongly threatening Re2.} Rf5 {[%emt 0:01:03]} 33. Qe3 {[%emt 0:00:40]} Qh4 {[%emt 0:00:20]} 34. Re2 $2 {[%emt 0:00:46]} ({Resist} 34. Nxa5 $6 Rf6 $18) (34. Bg2 $18) 34... Ne6 $2 {[%emt 0:00:34] Black cannot hold the game after this.} ({Better is} 34... Ba6 $1 $14) 35. Nf3 {[%emt 0:00:33]} ({But not} 35. Nxa5 $6 Nxd4 36. Rg2 h6) 35... Qh5 {[%emt 0:00:28]} 36. Nh2 {[%emt 0:00:23]} Bd7 {[%emt 0:00:38]} 37. Nc5 {[%emt 0:00:30]} Nxc5 {[%emt 0:00:28]} 38. dxc5 {[%emt 0:00:05]} d4 {[%emt 0:00:28]} 39. Qb3+ {[%emt 0:01:02]} Kf8 {[%emt 0:00:19]} (39... Qf7 $142 40. Qd1 Rf4) 40. Qd3 {[%emt 0:00:34] Hoping for Re1.} g4 $2 {[%emt 0:00:43]} (40... Rf7 41. Bg2 Rf4) 41. Qxd4 {[%emt 0:06:49] White is clearly winning.} g3 {[%emt 0:05:16]} 42. Qd6+ {[%emt 0:03:19]} Kg8 {[%emt 0:00:28]} 43. Qxg3+ {[%emt 0:00:29]} Qg6 {[%emt 0:06:25]} 44. Qxg6+ {[%emt 0:05:58]} hxg6 {[%emt 0:00:03]} 45. Re7 {[%emt 0:00:17] Weighted Error Value: White=0.46/Black=0.66} 1-0

[Event "Mitropa Cup Women 2022"]
[Site "Corte"]
[Date "2022.05.06"]
[Round "7.1"]
[White "Guichard, Pauline"]
[Black "Cvitan, Ena"]
[Result "1-0"]
[ECO "A61"]
[WhiteElo "2377"]
[BlackElo "2251"]
[Annotator "TA"]
[PlyCount "123"]
[EventDate "2022.04.30"]
[EventType "team-tourn"]
[EventCountry "FRA"]
[SourceTitle "playchess.com"]
[Source "ChessBase"]
[SourceQuality "1"]
[WhiteTeam "France"]
[BlackTeam "Croatia"]
[WhiteTeamCountry "FRA"]
[BlackTeamCountry "CRO"]
[TimeControl "40/5400+30:1800+30"]

{[%evp 13,123,36,45,23,25,0,42,35,46,55,81,68,77,17,18,14,33,6,18,-12,43,37,48,28,44,40,22,0,13,30,15,0,0,0,0,0,0,-28,0,-25,0,-17,71,58,53,58,55,56,58,-51,-55,-62,-56,-65,-66,-185,-185,-201,0,-8,0,0,2,3,133,128,429,418,404,394,374,341,345,177,274,0,0,0,0,0,0,0,0,0,0,0,975,962,910,847,29983,29984,29986,29984,29984,29985,29985,29986,29986,29987,29987,29984,29984,0,29987,29988,29988,29989,29989,29990,29990,29991]} 1. d4 {[%emt 0:00:05]} Nf6 {[%emt 0:00:41]} 2. c4 {[%emt 0:00:38]} e6 {[%emt 0:00:07]} 3. Nc3 {[%emt 0:00:18]} c5 {[%emt 0:00:21]} 4. d5 {[%emt 0:02:32]} exd5 {[%emt 0:00:10]} 5. cxd5 {[%emt 0:00:13]} d6 {[%emt 0:00:08]} 6. Nf3 {[%emt 0:03:28]} g6 {[%emt 0:00:42]} 7. Bf4 {[%emt 0:00:16]} Bg7 {[%emt 0:02:41]} 8. e3 {[%emt 0:00:19] A61: Modern Benoni: Nf3 without early e4.} O-O {[%emt 0:03:58]} 9. Be2 {[%emt 0:01:08]} a6 {[%emt 0:04:25]} 10. a4 $1 {[%emt 0:00:37] White is slightly better.} Nh5 {[%emt 0:01:14]} 11. Bg5 {[%emt 0:02:54]} f6 {[%emt 0:04:22]} 12. Bh4 {[%emt 0:02:59] White is more active.} g5 {[%emt 0:00:55] [#]} 13. Nd2 {[%emt 0:03:00]} gxh4 {[%emt 0:06:38]} 14. Bxh5 {[%emt 0:00:07]} Nd7 {[%emt 0:03:17]} 15. O-O {[%emt 0:02:36]} f5 {[%emt 0:00:34] [#]} 16. Ne2 $146 {[%emt 0:18:55]} ({Predecessor:} 16. Nc4 Ne5 17. Nxe5 Bxe5 18. f4 Bg7 19. Be2 Rb8 20. Bd3 Bd7 21. e4 Qb6 22. Kh1 Qxb2 {0-1 (31) Blanco Acevedo,C (2385)-Ismagambetov,A (2476) Moscow 2012}) 16... Ne5 {[%emt 0:14:19]} (16... Bxb2 $11 17. Ra2 Be5) 17. Nf4 {[%emt 0:03:33]} Rb8 {[%emt 0:06:01]} 18. Qc2 {[%emt 0:07:35]} Kh8 {[%emt 0:05:27]} 19. Be2 {[%emt 0:05:44]} Qe7 {[%emt 0:10:03]} 20. Ra3 {[%emt 0:03:45]} b5 {[%emt 0:01:56]} 21. axb5 {[%emt 0:00:32]} axb5 {[%emt 0:00:07]} 22. Rfa1 {[%emt 0:00:22]} Ng6 {[%emt 0:05:57] ...Nxf4 is the strong threat.} 23. Ra7 {[%emt 0:19:46]} Rb7 {[%emt 0:01:16]} 24. Rxb7 {[%emt 0:00:05]} Qxb7 {[%emt 0:02:15]} 25. Bf3 {[%emt 0:00:51]} Be5 {[%emt 0:04:49]} 26. g3 {[%emt 0:06:27]} Nxf4 {[%emt 0:04:44]} (26... Rg8 $5 {[%cal Rg6f4]}) 27. exf4 {[%emt 0:00:05]} Bd4 {[%emt 0:00:22]} (27... Bf6 $11) 28. Nb3 $16 {[%emt 0:04:24]} Bf6 {[%emt 0:00:23]} 29. Na5 $1 {[%emt 0:00:20]} Qg7 {[%emt 0:04:06]} 30. Nc6 {[%emt 0:00:05]} Bxb2 {[%emt 0:02:15]} 31. Rb1 {[%emt 0:00:21]} (31. Ra7 $1 $14 Qc3 32. Qe2) 31... Bd4 $15 {[%emt 0:01:30]} 32. Nxd4 {[%emt 0:00:16]} Qxd4 {[%emt 0:00:11]} 33. Rxb5 {[%emt 0:00:07]} Ba6 $1 {[%emt 0:01:00]} 34. Ra5 {[%emt 0:07:56]} (34. Rb3 $1 $15) 34... Bd3 $19 {[%emt 0:06:37]} 35. Qa2 {[%emt 0:00:32]} Qc3 $2 {[%emt 0:01:23]} (35... h3 $1 $19 {Hoping for ...Qc3.} 36. Ra8 Qc3 37. Rxf8+ Kg7 38. Qa7+ Kh6 39. Rf6+ Qxf6) 36. Kg2 $1 $11 {[%emt 0:00:13]} (36. Qa1 $2 Qxa1+ 37. Rxa1 h3 $19) 36... Be4 {[%emt 0:03:02]} 37. Bxe4 {[%emt 0:03:13]} fxe4 {[%emt 0:00:00][%mdl 4096] Endgame KQR-KQR} 38. Ra3 $36 {[%emt 0:01:05][%mdl 2048] White is pushing.} Qd4 {[%emt 0:00:30]} (38... Qg7 $11) 39. Ra4 $16 {[%emt 0:00:35]} Qd3 {[%emt 0:00:01][%mdl 8192]} (39... Qd1 $16) 40. Qb2+ $1 $18 {[%emt 0:01:23]} Kg8 {[%emt 0:00:01]} 41. Ra7 {[%emt 0:05:40][%csl Ga7][%cal Rb2g7] Dancing on a razor blade.} Rf7 {[%emt 0:03:13] [#] Against Qg7+} 42. Ra8+ $1 {[%emt 0:00:40]} (42. Qb8+ Kg7 $18) 42... Rf8 {[%emt 0:02:33]} 43. Rxf8+ {[%emt 0:05:22]} Kxf8 {[%emt 0:00:02] [#] KQ-KQ} 44. Qf6+ $2 {[%emt 0:00:09]} ({White has to play} 44. Qh8+ $1 $18 Ke7 45. Qxh7+ Kd8 46. Qxh4+ Kc8 47. Qg4+ Kc7 48. f5) 44... Kg8 $11 {[%emt 0:02:01]} 45. Qe6+ {[%emt 0:00:06]} (45. Qxd6 hxg3 46. Qd8+ (46. hxg3 Qf3+ 47. Kg1 Qd1+ 48. Kh2 Qh5+ 49. Kg2 Qf3+ 50. Kg1 Qd1+ 51. Kh2 Qh5+ 52. Kg2 Qf3+ $11) 46... Kf7 47. Qc7+ (47. fxg3 Qf3+ 48. Kh3 Qh5+ 49. Kg2 Qf3+ 50. Kh3 Qh5+ 51. Kg2 Qf3+ $11) 47... Kg6 48. Qd6+ (48. hxg3 Qf3+ 49. Kg1 Qd1+ 50. Kg2 Qf3+ 51. Kg1 Qd1+ 52. Kh2 Qxd5 $11) 48... Kf7 49. Qe6+ (49. hxg3 Qf3+ 50. Kh2 Qh5+ 51. Kg2 Qf3+ 52. Kh3 Qh5+ 53. Kg2 Qf3+ $11) 49... Kf8 50. Qf5+ (50. hxg3 Qf3+ 51. Kh3 Qh5+ 52. Kg2 Qf3+ 53. Kh3 Qh5+ 54. Kg2 Qf3+ $11) 50... Ke7 51. fxg3 (51. hxg3 Qf3+ 52. Kg1 Qd1+ 53. Kh2 Qf3 $16) 51... Qe2+ 52. Kh3 h5 53. Qe5+ Kd7) 45... Kg7 {[%emt 0:00:54]} 46. Qxd6 {[%emt 0:05:47]} Qf3+ $1 {[%emt 0:04:47]} 47. Kh3 {[%emt 0:00:07]} hxg3 {[%emt 0:00:15]} 48. Qe5+ {[%emt 0:00:17]} Kf7 {[%emt 0:03:41]} 49. Qf5+ {[%emt 0:07:23]} Kg7 $2 {[%emt 0:01:30][%mdl 8192]} (49... Ke7 $11 50. hxg3 h5 51. Qe5+ Kd8 52. Qh8+ Ke7 53. Qg7+ Ke8 54. Qg8+ Kd7 55. Qg7+ Ke8) 50. fxg3 $18 {[%emt 0:03:20] d6 would kill now.} e3 {[%emt 0:11:37]} 51. d6 {[%emt 0:02:08] Threatening mate with d7.} Qf1+ {[%emt 0:02:53]} 52. Kh4 {[%emt 0:00:17]} Qf2 {[%emt 0:00:48]} 53. h3 {[%emt 0:03:17]} Qd2 {[%emt 0:02:57]} 54. Qg5+ {[%emt 0:00:18]} Kf7 {[%emt 0:00:23]} 55. Qe7+ {[%emt 0:00:05]} Kg6 {[%emt 0:00:16]} 56. d7 {[%emt 0:03:10]} e2 {[%emt 0:00:01]} 57. Qe6+ {[%emt 0:00:12]} ({Inferior is} 57. f5+ Kxf5 58. g4+ Kg6 59. Qe6+ Kg7 60. Qe5+ Kf7 61. Qe8+ Kg7 62. Qe5+ Kf7 63. Qe8+ Kg7 64. Qe5+ $11) 57... Kg7 {[%emt 0:00:08]} 58. Qe7+ {[%emt 0:00:10]} Kg6 {[%emt 0:00:02]} 59. d8=Q {[%emt 0:00:05] White mates.} ({Weaker is} 59. f5+ Kxf5 60. g4+ Kg6 61. Qe6+ Kg7 62. Qe7+ Kg6 63. Qe4+ Kh6 64. Qe6+ Kg7 65. Qe5+ Kf7 66. Qe8+ Kg7 67. Qe7+ Kg6 $11) 59... Qxd8 {[%emt 0:00:23]} 60. Qxd8 {[%emt 0:00:05]} e1=Q {[%emt 0:00:08]} 61. Qg8+ {[%emt 0:00:25]} Kf6 {[%emt 0:00:36]} 62. Qf8+ {[%emt 0:00:07] White used his chance.  Weighted Error Value: White=0.26 (precise) /Black=0.45} 1-0